Cogmind - Beta 12 *** ADVENTURER MODE // 2023.03.23 @ 21:47:48 Player: FrigidRock Result: Destroyed by S-27 Virus with Autogun Performance ------------- Evolutions (6) 3000 Regions Visited (24) 4800 Robots Destroyed (216) 1080 Value Destroyed (8833) 8833 Prototype IDs (41) 820 Alien Tech Used (1) 200 Bonus (2413) 2413 TOTAL SCORE: 21146 Bonus ------- High Alert Combat Kills 228 Follower Combat Kills 1023 Network Hubs Disabled 200 Met Imprinter 300 Met Zhirov 300 Met R17 at Cetus 500 Friendly Fire -138 Cogmind --------- Core Integrity 0/1150 Matter 24/300 Energy 99/100 System Corruption 18% Temperature Cool (0) Movement Core (50) Location -4/Upper Caves Parts ------- > --- POWER (2) -------- (None) > --- PROPULSION (5) --- (None) > --- UTILITY (9) ------ (None) > --- WEAPON (3) ------- (None) > --- INVENTORY (5) ---- Heavy Treads Heavy Mass Driver Hardcell Cannon Peak State ------------ > --- POWER ------------ Light Fission Core Fusion Reactor > --- PROPULSION ------- Armored Medium Treads Centrium Heavy Treads Centrium Heavy Treads > --- UTILITY ---------- Advanced Heat Sink Large Storage Unit Advanced Visual Processing Unit Experimental Sensor Array Advanced ECM Suite Improved Cloaking Device Centrium Medium Armor Plating Hacking Suite Advanced Hacking Suite > --- WEAPON ----------- Advanced Variable Charge Gun Advanced KE Penetrator Advanced KE Penetrator > --- INVENTORY -------- Light Angular Momentum Engine Heavy Treads Advanced Heat Sink Advanced Energy Well Advanced Targeting Computer Recoil Nullifier Experimental Core Shielding Centrium Medium Armor Plating Transdimensional Reconstructor Heavy Phase Cannon Heavy Missile Launcher [Rating: 133] Favorites ----------- Power Light Fission Core Engine Deuterium Engine Power Core Light Fission Core Reactor Fusion Reactor Propulsion Titanium Leg Treads Centrium Heavy Treads Leg Titanium Leg Wheel Compact Wheel Hover Unit Combat Airjet Utility Large Storage Unit Device Experimental Sensor Array Storage Large Storage Unit Processor Visual Processing Unit Hackware Hacking Suite Protection Centrium Medium Armor Plating Weapon Advanced Variable Charge Gun Energy Gun Advanced Variable Charge Gun Energy Cannon Improved EM Pulse Cannon Ballistic Gun Advanced KE Penetrator Ballistic Cannon Slug Cannon Launcher Heavy Shock Bomb Launcher Slashing Weapon Phasing Sabre Build | -11 -10 -10 -10 -9 -8 -7 -7 -7 -7 -6 -6 -6 -6 -6 -6 -5 -5 -5 -5 -4 -4 -4 -4 -4 ------- Run | Jun Mat Min Exi Min Mat Fac Low Low Zio Pro Fac Ext Cet Arc Hub Fac Upp Upp Zhi Pro Fac Was Fac Upp Slots Evolved 12 | . . . . . 4 2 . . . . 2 . . . . 2 . . . . 2 . . . Power 1 | . . . . . . 1 . . . . . . . . . . . . . . . . . . Propulsion 3 | . . . . . 2 . . . . . 1 . . . . . . . . . . . . . Utility 7 | . . . . . 1 1 . . . . 1 . . . . 2 . . . . 2 . . . Weapon 1 | . . . . . 1 . . . . . . . . . . . . . . . . . . . Parts Attached 230 | 6 6 . . 6 28 21 3 1 5 7 15 21 41 5 10 16 2 2 6 4 13 . 12 . Power 34 | 1 2 . . 1 2 5 . 1 . 2 2 1 8 1 1 3 . . 1 . 2 . 1 . Engine 18 | 1 2 . . 1 1 . . 1 . 2 1 . 6 . 1 1 . . . . . . 1 . Core 11 | . . . . . 1 5 . . . . 1 1 . 1 . 2 . . . . . . . . Reactor 5 | . . . . . . . . . . . . . 2 . . . . . 1 . 2 . . . Propulsion 45 | 2 . . . 3 11 2 2 . . 1 2 1 9 1 2 3 1 . . . 1 . 4 . Treads 15 | . . . . . . . . . . . . . 5 1 2 3 1 . . . 1 . 2 . Leg 19 | . . . . . 6 2 2 . . 1 2 1 4 . . . . . . . . . 1 . Wheel 10 | 2 . . . 3 5 . . . . . . . . . . . . . . . . . . . Hover 1 | . . . . . . . . . . . . . . . . . . . . . . . 1 . Flight . | . . . . . . . . . . . . . . . . . . . . . . . . . Utility 75 | 1 2 . . . 2 1 . . 3 1 5 14 12 3 4 8 1 1 4 1 7 . 5 . Device 55 | . . . . . 1 1 . . 3 1 4 13 8 2 3 6 1 1 1 1 4 . 5 . Storage 3 | 1 1 . . . . . . . . . . . . . . . . . 1 . . . . . Processor 7 | . 1 . . . 1 . . . . . . . 1 1 1 . . . . . 2 . . . Hackware 4 | . . . . . . . . . . . 1 1 1 . . . . . 1 . . . . . Protection 6 | . . . . . . . . . . . . . 2 . . 2 . . 1 . 1 . . . Artifact . | . . . . . . . . . . . . . . . . . . . . . . . . . Weapon 76 | 2 2 . . 2 13 13 1 . 2 3 6 5 12 . 3 2 . 1 1 3 3 . 2 . Energy Gun 15 | 1 . . . . 1 1 . . . . 1 . 8 . 1 1 . . . . . . 1 . Energy Cannon 21 | . . . . . 4 8 1 . . . 3 3 . . . . . . 1 . 1 . . . Ballistic Gun 22 | 1 2 . . 1 6 2 . . . 1 1 . 3 . 1 1 . . . 2 1 . . . Ballistic Cannon 13 | . . . . 1 2 2 . . 1 1 1 1 1 . 1 . . . . . 1 . 1 . Launcher 4 | . . . . . . . . . . 1 . 1 . . . . . 1 . 1 . . . . Special Weapon . | . . . . . . . . . . . . . . . . . . . . . . . . . Impact Weapon . | . . . . . . . . . . . . . . . . . . . . . . . . . Slashing Weapon 1 | . . . . . . . . . 1 . . . . . . . . . . . . . . . Piercing Weapon . | . . . . . . . . . . . . . . . . . . . . . . . . . Special Melee Weapon . | . . . . . . . . . . . . . . . . . . . . . . . . . Unidentified Prototypes 15 | . . . . . 2 2 . . 1 . 1 . 4 . 1 . . . 4 . . . . . Parts Lost 35 | . . . . . 3 . . . . . . 4 9 . . . . . . . 8 9 2 . Power 6 | . . . . . . . . . . . . 1 2 . . . . . . . 1 1 1 . Propulsion 6 | . . . . . 2 . . . . . . 1 1 . . . . . . . . 2 . . Utility 13 | . . . . . . . . . . . . . 2 . . . . . . . 4 6 1 . Weapon 10 | . . . . . 1 . . . . . . 2 4 . . . . . . . 3 . . . Highest Loss Streak 9 | . . . . . 1 . . . . . . 2 4 . . . . . . . 5 9 1 . To Critical Strikes 5 | . . . . . . . . . . . . 1 2 . . . . . . . . 2 . . Average Slot Usage (%) 89 | . 89 100 100 99 99 99 100 100 99 98 99 99 84 83 84 87 88 88 87 88 84 62 31 . Engine 5 | . 14 14 14 13 7 4 . 3 7 8 6 6 2 7 10 2 . . . . . . 2 . Core 4 | . . . . . 1 9 15 11 7 4 5 5 . 4 . 7 11 11 8 5 2 . . . Reactor 1 | . . . . . . . . . . . . . 9 . . . . . 1 5 6 7 . . Treads 6 | . . . . . . . . . . . . . 17 16 20 16 17 17 17 17 15 10 5 . Leg 12 | . . . . . 23 30 30 30 30 29 32 32 1 . . . . . . . . . . . Wheel 5 | . 28 28 28 28 11 . . . . . . . . . . . . . . . . . . . Device 11 | . . . . . 7 7 7 7 6 10 14 12 9 10 10 24 23 23 17 15 21 18 13 . Storage 7 | . 14 14 14 14 9 7 7 7 7 7 6 6 6 6 6 5 5 5 5 5 5 4 . . Processor 7 | . 4 14 14 14 10 15 15 15 15 11 6 6 . 2 1 . . . . . 7 8 . . Hackware 3 | . . . . . . . . . . . 4 6 8 6 6 5 5 5 7 11 5 . . . Protection 1 | . . . . . . . . . . . . . 5 6 6 3 5 5 7 6 4 2 . . Energy Gun 4 | . 6 . . . 5 2 . . . . . . 13 13 9 7 11 11 8 5 2 . 2 . Energy Cannon 4 | . . . . . 3 7 15 15 15 14 4 8 . . . . . . 1 2 2 4 . . Ballistic Gun 8 | . 21 28 28 19 11 8 7 7 5 . 5 . 4 6 5 8 5 4 . 7 3 . . . Ballistic Cannon 2 | . . . . 8 5 3 . . . 6 7 8 . . 3 . . . . . 1 4 2 . Naked Turns 277 | . . . . . . . . . . . . . . . . . . . . . . 26 51 200 Heaviest Build 87 | 12 31 31 31 35 49 54 50 55 61 75 72 66 87 68 67 63 60 63 73 70 86 86 45 . Greatest Support 190 | 32 32 32 32 32 68 66 69 69 69 69 86 86 188 183 190 187 187 97 97 97 187 187 100 3 Greatest Overweight (x) 2 | . . . . 1 2 . . . . 1 . . . . . . . . . . . . 2 . Average Overweight (x) . | . . . . . . . . . . . . . . . . . . . . . . . . . Largest Inventory Capacity 15 | 8 15 15 15 15 15 15 15 15 15 15 15 15 15 15 15 15 15 15 15 15 15 15 5 5 Average Capacity 14 | 7 9 15 15 15 15 15 15 15 15 15 15 15 15 15 15 15 15 15 15 15 15 13 5 5 Most Carried 15 | . 11 13 13 15 15 15 15 15 15 15 14 15 15 15 15 15 15 15 15 15 15 15 5 5 Average Carried 13 | . 3 11 13 14 14 14 15 15 14 14 12 14 13 14 14 14 14 14 14 14 12 13 2 5 Final Capacity 15 | 8 15 15 15 15 15 15 15 15 15 15 15 15 15 15 15 15 15 15 15 15 15 5 5 5 Final Carried 15 | . 11 13 13 15 15 15 15 15 15 15 14 15 15 15 14 15 14 15 14 15 15 5 5 5 Class Distribution -------------------- 27% | Skirmisher 21% | Mutant 18% | Scavenger-Tank 7% | Scavenger-Mutant 6% | Scavenger-Skirmisher 6% | Hacker-Skirmisher 3% | Hacker-Tank Dominant Class ---------------- Mutant | -10/Materials Mutant | -10/Mines Mutant | -10/Exiles Mutant | -9/Mines Skirmisher | -8/Materials Skirmisher | -7/Factory Skirmisher | -7/Lower Caves Skirmisher | -7/Lower Caves Skirmisher | -7/Zion Mutant | -6/Proximity Caves Hacker-Skirmisher | -6/Factory Hacker-Skirmisher | -6/Extension Scavenger-Tank | -6/Cetus Scavenger-Tank | -6/Archives Scavenger-Tank | -6/Hub_04(d) Scavenger-Tank | -5/Factory Scavenger-Tank | -5/Upper Caves Scavenger-Tank | -5/Upper Caves Scavenger-Mutant | -5/Zhirov Hacker-Tank | -4/Proximity Caves Scavenger-Gunner | -4/Factory Scavenger-Gunner | -4/Waste Mutant | -4/Factory Mutant | -4/Upper Caves Resources | -11 -10 -10 -10 -9 -8 -7 -7 -7 -7 -6 -6 -6 -6 -6 -6 -5 -5 -5 -5 -4 -4 -4 -4 -4 ----------- Run | Jun Mat Min Exi Min Mat Fac Low Low Zio Pro Fac Ext Cet Arc Hub Fac Upp Upp Zhi Pro Fac Was Fac Upp Matter Collected 5964 | 183 261 30 . 458 1034 473 58 49 30 244 336 461 672 125 167 400 159 106 70 103 458 . 87 . Remotely . | . . . . . . . . . . . . . . . . . . . . . . . . . Salvage Created 9749 | . 273 . . 437 1622 1101 48 175 . 249 574 464 1467 318 382 842 229 306 . 106 1069 . 87 . Parts 459 | . 22 . . 28 97 63 3 10 . 9 17 15 55 12 17 40 4 9 . 10 47 . 1 . Haulers Intercepted 1 | . . . . . 1 . . . . . . . . . . . . . . . . . . . Recyclers Shooed 5 | . . . . . 1 . . . . . 2 . . . . 1 . . . . 1 . . . Parts Field Recycled . | . . . . . . . . . . . . . . . . . . . . . . . . . Retrieved Matter . | . . . . . . . . . . . . . . . . . . . . . . . . . Parts Self-Destructed 42 | . . . . . . . . 8 . 6 . . . . . . 12 10 . 6 . . . . Prevented 19 | . . . . . . . 2 3 . 8 . . . . . . 3 . . 3 . . . . Kills | -11 -10 -10 -10 -9 -8 -7 -7 -7 -7 -6 -6 -6 -6 -6 -6 -5 -5 -5 -5 -4 -4 -4 -4 -4 ------- Run | Jun Mat Min Exi Min Mat Fac Low Low Zio Pro Fac Ext Cet Arc Hub Fac Upp Upp Zhi Pro Fac Was Fac Upp Combat Hostiles Destroyed 173 | . 13 . . 14 32 21 1 5 . 4 1 10 27 4 5 8 3 7 . 3 13 . 2 . Guns 108 | . 13 . . 12 13 7 . . . 1 . . 25 4 5 8 3 7 . 2 8 . . . Cannons 52 | . . . . 2 18 10 1 5 . 1 1 5 1 . . . . . . 1 5 . 2 . AOE 10 | . . . . . 1 3 . . . 1 . 5 . . . . . . . . . . . . Classes Destroyed 20 | . 3 . . 3 4 2 . . . 1 2 . 1 . . 1 . . . 1 2 . . . Worker 6 | . . . . . 3 1 . . . . . . . . 2 . . . . . . . . . Builder 7 | . . . . 1 1 1 . . . . . 2 . . . 2 . . . . . . . . Tunneler 2 | . . . . . . 1 . . . . . . . . . 1 . . . . . . . . Hauler 1 | . . . . . 1 . . . . . . . . . . . . . . . . . . . Recycler 8 | . . . . . . . . . . . 4 1 . . . 2 . . . . 1 . . . Carrier 1 | . . . . . . . . . . . . . 1 . . . . . . . . . . . Mechanic 3 | . . . . . . . . . . . . . . . . 1 . . . . 2 . . . Operator 3 | . . . . . . . . . . . 2 . . . . 1 . . . . . . . . Drone 2 | . . . . . . . . . . . . . . . . . . . . 2 . . . . Watcher 12 | . 1 . . . 5 3 . . . . . 1 1 . . . . . . . 1 . . . Swarmer 41 | . 9 . . 3 4 5 . 4 . 1 . 2 8 . . 1 . 4 . . . . . . Cutter 3 | . . . . . . . . . . . . . . . . . . . . . 3 . . . Grunt 66 | . 4 . . 7 16 9 . . . 1 . 5 12 . 2 3 . 2 . . 4 . 1 . Brawler 2 | . . . . 1 . . . . . . . . . . . . 1 . . . . . . . Duelist 5 | . . . . 3 . . . . . . . . . . . . 1 1 . . . . . . Sentry 25 | . . . . . 9 4 . 1 . . . 2 . 4 2 . 1 . . 1 . . 1 . Hunter 11 | . . . . . 3 2 1 . . 1 . . . . . 2 . . . . 2 . . . Programmer 9 | . . . . . . 1 . . . . 1 1 2 . . 2 . . . . 2 . . . Heavy 2 | . . . . . . . . . . . . . . . . . . . . . 2 . . . Behemoth 2 | . . . . . . . . . . 1 . . . . 1 . . . . . . . . . Cetus Guard 5 | . . . . . . . . . . . . . 5 . . . . . . . . . . . Best Kill Streak 8 | . 3 . . 3 6 5 1 3 . 2 3 8 5 2 2 5 2 4 . 2 8 . 1 . Combat Bots Only 6 | . 3 . . 3 4 4 1 3 . 2 1 3 5 2 2 3 2 4 . 2 6 . 1 . Max Kills in Single Turn 2 | . 1 . . 1 2 2 1 1 . 1 1 2 2 1 2 2 1 2 . 1 2 . 1 . Gunslinging 1 | . . . . . . . . . . . . . 1 . . . . 1 . . . . . . Exploded 2 | . . . . . 1 2 . . . 1 . 2 . . . . . . . . . . . . Melee . | . . . . . . . . . . . . . . . . . . . . . . . . . Uniques/NPCs Destroyed . | . . . . . . . . . . . . . . . . . . . . . . . . . Combat | -11 -10 -10 -10 -9 -8 -7 -7 -7 -7 -6 -6 -6 -6 -6 -6 -5 -5 -5 -5 -4 -4 -4 -4 -4 -------- Run | Jun Mat Min Exi Min Mat Fac Low Low Zio Pro Fac Ext Cet Arc Hub Fac Upp Upp Zhi Pro Fac Was Fac Upp Damage Taken 13199 | . 211 . . 259 656 580 14 254 . 493 . 920 3170 398 554 632 282 519 . 247 1855 665 1104 386 Core 2153 | . 44 . . 25 28 32 . 63 . 68 . 54 345 41 51 42 16 184 . . 87 121 566 386 Absorbed by Shields . | . . . . . . . . . . . . . . . . . . . . . . . . . Reduced by Siege Mode 52 | . . . . . . . . . . . . . 36 . . 16 . . . . . . . . Regen/Repaired (Parts) 1624 | . . . . . 25 . . . 454 . 33 . . . . 575 . . . . 537 . . . Core Remaining (%) 76 | 100 . . . 72 94 . . . . 76 . . . . 42 . . . . 75 . . . . Volleys Fired 530 | . 29 1 . 38 73 44 1 8 . 19 11 22 106 14 16 39 17 15 . 12 43 12 10 . Largest 3 | . 2 2 . 2 3 3 3 3 . 3 3 3 3 3 3 3 3 3 . 3 3 2 2 . Hottest 515 | . 70 46 . 71 174 163 163 163 . 195 151 186 240 515 240 195 195 195 . 205 165 165 163 . Shots Fired 1303 | . 57 2 . 73 214 120 4 21 . 41 33 59 225 38 46 108 45 38 . 27 117 16 19 . Gun 908 | . 57 2 . 55 107 52 2 4 . 7 11 . 221 38 43 108 45 38 . 23 85 . 10 . Cannon 374 | . . . . 18 107 68 2 17 . 24 22 51 4 . 3 . . . . 2 31 16 9 . Launcher 21 | . . . . . . . . . . 10 . 8 . . . . . . . 2 1 . . . Special . | . . . . . . . . . . . . . . . . . . . . . . . . . Kinetic 684 | . 44 2 . 73 148 57 2 4 . 16 23 27 60 13 13 61 17 8 . 19 77 11 9 . Thermal 399 | . 13 . . . . . . . . . . . 163 25 33 47 28 30 . 6 39 5 10 . Explosive 18 | . . . . . . . . . . 10 . 8 . . . . . . . . . . . . Electromagnetic 202 | . . . . . 66 63 2 17 . 15 10 24 2 . . . . . . 2 1 . . . Robot Hit Streak 66 | . 16 . . 10 21 19 23 28 . 12 26 35 18 15 28 19 13 9 . 4 55 64 66 . Robot Miss Streak 5 | . 4 . . 3 5 4 . 2 . 5 1 2 3 1 2 2 1 2 . 1 1 . 1 . Penetration Max 1 | . . . . . 1 . . . . . . 1 1 . 1 1 1 . . . 1 . . . Secondary Targets 21 | . 3 . . 1 . . . . . . . . 10 . 1 2 1 2 . . 1 . . . Max Gunslinging Chain 1 | . 1 . . 1 . . . . . . . . 1 . 1 1 1 1 . . 1 . . . Shots Hit Robots 877 | . 47 . . 51 137 84 3 10 . 21 25 42 141 29 33 58 30 32 . 6 102 9 17 . Core Hits 409 | . 20 . . 27 76 47 3 5 . 9 14 33 58 12 15 27 7 10 . 4 35 1 6 . Critical Kills 13 | . . . . . 4 . . . . . . . 4 . 1 1 . . . . 3 . . . Critical Parts Destroyed 32 | . . . . 3 3 . . . . 1 2 4 3 . 3 4 2 1 . . 6 . . . Critical Strikes 54 | . . . . 3 7 1 1 . . 2 2 8 7 . 4 5 3 1 . . 9 . 1 . Destroy 46 | . . . . 3 7 . . . . 1 2 4 7 . 4 5 3 1 . . 9 . . . Blast 3 | . . . . . . . . . . . . 2 . . . . . . . . . . 1 . Corrupt 5 | . . . . . . 1 1 . . 1 . 2 . . . . . . . . . . . . Melee Attacks 1 | . . . . . . . . . 1 . . . . . . . . . . . . . . . Impact . | . . . . . . . . . . . . . . . . . . . . . . . . . Slashing 1 | . . . . . . . . . 1 . . . . . . . . . . . . . . . Piercing . | . . . . . . . . . . . . . . . . . . . . . . . . . Sneak Attacks . | . . . . . . . . . . . . . . . . . . . . . . . . . Combat Hostiles . | . . . . . . . . . . . . . . . . . . . . . . . . . Follow-up Attacks . | . . . . . . . . . . . . . . . . . . . . . . . . . Damage Inflicted 25321 | . 655 . . 917 3077 2512 86 243 . 625 750 1889 3997 864 1173 1612 854 993 . 174 3620 465 815 . Guns 15727 | . 655 . . 733 1278 788 24 . . 100 209 . 3947 864 1008 1605 854 993 . 106 2320 . 243 . Cannons 7793 | . . . . 184 1711 1384 62 243 . 318 541 960 50 . 22 . . . . 36 1248 462 572 . Explosions 1791 | . . . . . 88 340 . . . 207 . 929 . . 143 . . . . 32 52 . . . Melee . | . . . . . . . . . . . . . . . . . . . . . . . . . Ramming 10 | . . . . . . . . . . . . . . . . 7 . . . . . 3 . . Kinetic 11403 | . 517 . . 917 1767 889 24 . . 125 431 411 1276 213 230 839 344 171 . 55 2294 328 572 . Thermal 8704 | . 138 . . . 88 340 . . . 65 . 115 2671 651 800 766 510 822 . 87 1274 134 243 . Explosive 956 | . . . . . . . . . . 142 . 814 . . . . . . . . . . . . Electromagnetic 4248 | . . . . . 1222 1283 62 243 . 293 319 549 50 . 143 . . . . 32 52 . . . Impact . | . . . . . . . . . . . . . . . . . . . . . . . . . Slashing . | . . . . . . . . . . . . . . . . . . . . . . . . . Piercing . | . . . . . . . . . . . . . . . . . . . . . . . . . Highest Corruption 18 | . . . . . . 8 8 8 8 . . . 3 3 6 . . . . . 1 11 13 18 Average Corruption 5 | . . . . . . 6 8 8 8 . . . 2 3 3 . . . . . 1 7 11 14 Corruption Purged . | . . . . . . . . . . . . . . . . . . . . . . . . . Corruption Blocked . | . . . . . . . . . . . . . . . . . . . . . . . . . Effects 114 | . . . . . . 24 7 7 1 . . . 9 7 11 . . . . . 5 4 29 10 Message Errors 25 | . . . . . . 5 1 3 . . . . 2 1 3 . . . . . 1 . 5 4 Matter Fused 17 | . . . . . . 4 2 . . . . . . 1 1 . . . . . 1 . 8 . Heat Flow Errors 18 | . . . . . . 5 1 . . . . . 1 . 2 . . . . . 1 2 3 3 Energy Discharges 12 | . . . . . . 1 1 1 . . . . 3 2 . . . . . . . . 4 . Parts Rejected 1 | . . . . . . . . . . . . . . . 1 . . . . . . . . . Parts Fused 2 | . . . . . . 1 . . . . . . . 1 . . . . . . . . . . Data Loss (minor) 16 | . . . . . . 3 1 1 1 . . . 2 1 2 . . . . . . . 3 2 Data Loss (major) 6 | . . . . . . 1 . 1 . . . . . . . . . . . . 1 1 2 . Misfires 5 | . . . . . . 2 1 1 . . . . 1 . . . . . . . . . . . Alerts 2 | . . . . . . . . . . . . . . 1 1 . . . . . . . . . Misdirections 4 | . . . . . . . . . . . . . . . . . . . . . . . 3 1 Weapon Failures 6 | . . . . . . 2 . . . . . . . . 1 . . . . . 1 1 1 . Overload Shots 3 | . . . . . . . . . . . . . . 3 . . . . . . . . . . Overflow Damage 204 | . . . . 13 37 9 . 11 . . 43 54 . . . . . . . . 37 . . . Projectiles 170 | . . . . 13 23 9 . 11 . . 43 34 . . . . . . . . 37 . . . Explosions 34 | . . . . . 14 . . . . . . 20 . . . . . . . . . . . . Melee . | . . . . . . . . . . . . . . . . . . . . . . . . . Knockbacks 12 | . . . . 3 3 1 . . . . 3 . . . 1 . . . . . 1 . . . Impact . | . . . . . . . . . . . . . . . . . . . . . . . . . Kinetic 12 | . . . . 3 3 1 . . . . 3 . . . 1 . . . . . 1 . . . Secondary . | . . . . . . . . . . . . . . . . . . . . . . . . . Self-Inflicted Damage 231 | . . . . . 44 58 . . . 24 . . . . 81 . . . . . 24 . . . Shots 7 | . . . . . 1 2 . . . 2 . . . . 1 . . . . . 1 . . . Rammed 1 | . . . . . . . . . . . . . . . . . . . . . . 1 . . Targets Rammed 2 | . . . . . . . . . . . . . . . . 1 . . . . . 1 . . Kicked . | . . . . . . . . . . . . . . . . . . . . . . . . . Crushed 1 | . . . . . . . . . . . . . . . . 1 . . . . . . . . Highest Temperature 561 | . 54 . . 48 382 353 210 330 . 324 168 313 561 402 163 224 447 508 . 204 310 188 234 211 Average Temperature 116 | . 24 . . 17 88 113 88 166 . 98 62 118 152 134 76 110 209 212 . 90 135 93 85 111 Received Heat Transfer 3111 | . 36 . . 84 288 108 . 18 . 126 . 384 1212 90 144 114 45 126 . 27 96 . 192 21 Effects 48 | . . . . . 2 5 . . . 1 . 2 15 . . 1 13 9 . . . . . . Shutdowns 13 | . . . . . . . . . . . . . 5 . . . 5 3 . . . . . . Energy Bleed 1 | . . . . . . . . . . . . . . . . 1 . . . . . . . . Interference 21 | . . . . . 2 4 . . . . . 2 6 . . . 4 3 . . . . . . Matter Decay 4 | . . . . . . . . . . . . . 2 . . . 1 1 . . . . . . Short Circuit 4 | . . . . . . . . . . 1 . . 1 . . . 2 . . . . . . . Damage (minor) 3 | . . . . . . 1 . . . . . . . . . . 1 1 . . . . . . Damage (core) 2 | . . . . . . . . . . . . . 1 . . . . 1 . . . . . . Siege Activations 3 | . . . . . . . . . . . . . 2 . . 1 . . . . . . . . Total Turns 37 | . . . . . . . . . . . . . 19 . . 18 . . . . . . . . Longest Duration 18 | . . . . . . . . . . . . . 17 . . 18 . . . . . . . . Robots Corrupted 2 | . . . . . . 1 . . . 1 . . . . . . . . . . . . . . Combat Hostiles 2 | . . . . . . 1 . . . 1 . . . . . . . . . . . . . . Parts Fried 14 | . . . . . 1 5 1 . . 1 2 3 . . 1 . . . . . . . . . Impact Corruptions . | . . . . . . . . . . . . . . . . . . . . . . . . . Robots Melted 1 | . . . . . . . . . . . . . 1 . . . . . . . . . . . Combat Hostiles 1 | . . . . . . . . . . . . . 1 . . . . . . . . . . . Parts Melted 15 | . 1 . . . . . . . . 1 . . 3 3 2 2 . 2 . . 1 . . . Heat Transferred 10830 | . 407 . . . 100 350 . . . . . 50 3626 803 943 962 666 962 . 111 1369 148 333 . Parts Sabotaged 2 | . . . . . . . . . . . . . . . . . . . . . . . 2 . Parts Stolen . | . . . . . . . . . . . . . . . . . . . . . . . . . Parts Stripped . | . . . . . . . . . . . . . . . . . . . . . . . . . Power Chain Reactions 6 | . . . . . 2 3 . . . 1 . . . . . . . . . . . . . . Missiles Intercepted . | . . . . . . . . . . . . . . . . . . . . . . . . . Alert | -11 -10 -10 -10 -9 -8 -7 -7 -7 -7 -6 -6 -6 -6 -6 -6 -5 -5 -5 -5 -4 -4 -4 -4 -4 ------- Run | Jun Mat Min Exi Min Mat Fac Low Low Zio Pro Fac Ext Cet Arc Hub Fac Upp Upp Zhi Pro Fac Was Fac Upp Peak Influence 626 | . 244 80 . 205 626 345 . . . . 221 277 501 225 283 196 . . . . 342 87 106 . Initial 161 | . . 80 . . 55 83 . . . . 135 19 26 72 7 34 . . . . 161 83 2 . Average 187 | . 122 80 . 114 398 173 . . . . 138 126 268 147 108 99 . . . . 233 61 23 . Maximum Alert Level 2 | . 1 . . 1 2 1 . . . . 1 1 2 1 1 . . . . . 1 . . . Low Security (%) 61 | 100 86 100 . 95 6 59 . . . . 88 87 26 50 99 100 . . . . 12 100 100 . Level 1 25 | . 13 . . 4 32 40 . . . . 11 12 49 49 . . . . . . 87 . . . Level 2 12 | . . . . . 60 . . . . . . . 23 . . . . . . . . . . . Level 3 . | . . . . . . . . . . . . . . . . . . . . . . . . . Level 4 . | . . . . . . . . . . . . . . . . . . . . . . . . . Level 5 . | . . . . . . . . . . . . . . . . . . . . . . . . . High Security . | . . . . . . . . . . . . . . . . . . . . . . . . . Max Security . | . . . . . . . . . . . . . . . . . . . . . . . . . Squads Dispatched 39 | . 3 . . . 10 11 . . . 1 2 . 3 . . 1 . . . . 4 . 4 . Investigation 15 | . 3 . . . 5 3 . . . . . . 3 . . . . . . . . . 1 . Extermination 5 | . . . . . . 1 . . . . 1 . . . . 1 . . . . 1 . 1 . Reinforcement 8 | . . . . . 1 1 . . . . 1 . . . . . . . . . 3 . 2 . Assault 1 | . . . . . . . . . . 1 . . . . . . . . . . . . . . Garrison 10 | . . . . . 4 6 . . . . . . . . . . . . . . . . . . Intercept . | . . . . . . . . . . . . . . . . . . . . . . . . . Searches Triggered . | . . . . . . . . . . . . . . . . . . . . . . . . . Construction Impeded . | . . . . . . . . . . . . . . . . . . . . . . . . . Haulers Reinforced 1 | . . . . . . 1 . . . . . . . . . . . . . . . . . . Active Scanning Responses . | . . . . . . . . . . . . . . . . . . . . . . . . . Cargo Convoy Interrupts 2 | . . . . . . . . . . . . . . . . 1 . . . . . . 1 . Stealth | -11 -10 -10 -10 -9 -8 -7 -7 -7 -7 -6 -6 -6 -6 -6 -6 -5 -5 -5 -5 -4 -4 -4 -4 -4 --------- Run | Jun Mat Min Exi Min Mat Fac Low Low Zio Pro Fac Ext Cet Arc Hub Fac Upp Upp Zhi Pro Fac Was Fac Upp Distress Signals 11 | . 1 . . . 2 3 . . . . . 3 2 . . . . . . . . . . . Communications Jammed . | . . . . . . . . . . . . . . . . . . . . . . . . . Distress Signals . | . . . . . . . . . . . . . . . . . . . . . . . . . Times Spotted 332 | . 18 . . 17 51 32 1 6 . 26 5 19 40 4 9 16 5 7 . 8 16 7 29 16 Peak Tracking Total 18 | . 4 . . 3 6 4 1 3 . 11 1 9 6 1 4 3 3 4 . 5 5 6 18 15 Tactical Retreats 22 | . 1 . . 1 1 5 . . . 4 . 2 1 . . . . . . . 1 1 4 1 Traps | -11 -10 -10 -10 -9 -8 -7 -7 -7 -7 -6 -6 -6 -6 -6 -6 -5 -5 -5 -5 -4 -4 -4 -4 -4 ------- Run | Jun Mat Min Exi Min Mat Fac Low Low Zio Pro Fac Ext Cet Arc Hub Fac Upp Upp Zhi Pro Fac Was Fac Upp Traps Triggered 6 | . 1 . . . 1 1 . . . . . . . . . 1 . . . . 2 . . . Indirectly 1 | . . . . . . . . . . . . . . . . . . . . . 1 . . . Trap Hack Attempts . | . . . . . . . . . . . . . . . . . . . . . . . . . Triggered . | . . . . . . . . . . . . . . . . . . . . . . . . . Disarmed . | . . . . . . . . . . . . . . . . . . . . . . . . . Reprogrammed 6 | . . . . . . . . . . . . . . . . . . . . . . . 6 . Reused 1 | . . . . . . . . . . . . . . . . . . . . . . . 1 . Traps Extracted . | . . . . . . . . . . . . . . . . . . . . . . . . . Installed . | . . . . . . . . . . . . . . . . . . . . . . . . . Triggered 9 | . . . . . 1 1 . . . . . 1 . . . 3 2 . . . . . 1 . Machines | -11 -10 -10 -10 -9 -8 -7 -7 -7 -7 -6 -6 -6 -6 -6 -6 -5 -5 -5 -5 -4 -4 -4 -4 -4 ---------- Run | Jun Mat Min Exi Min Mat Fac Low Low Zio Pro Fac Ext Cet Arc Hub Fac Upp Upp Zhi Pro Fac Was Fac Upp Machines Disabled 28 | . . . . . 7 . . . . . . 6 6 1 3 4 . . . . 1 . . . Max in Single Turn 2 | . . . . . 1 . . . . . . 2 2 1 2 1 . . . . 1 . . . Network Hub 1 | . . . . . . . . . . . . . . . 1 . . . . . . . . . Energy Cycler 2 | . . . . . . . . . . . . 2 . . . . . . . . . . . . Machines Repaired . | . . . . . . . . . . . . . . . . . . . . . . . . . Machines Sabotaged . | . . . . . . . . . . . . . . . . . . . . . . . . . Overloaded Fab Kills . | . . . . . . . . . . . . . . . . . . . . . . . . . Hacking | -11 -10 -10 -10 -9 -8 -7 -7 -7 -7 -6 -6 -6 -6 -6 -6 -5 -5 -5 -5 -4 -4 -4 -4 -4 --------- Run | Jun Mat Min Exi Min Mat Fac Low Low Zio Pro Fac Ext Cet Arc Hub Fac Upp Upp Zhi Pro Fac Was Fac Upp Machines Accessed 72 | . 8 . 3 1 15 9 . . . . 4 6 3 1 2 7 . . 7 . 1 . 5 . Terminals 40 | . 6 . . 1 11 3 . . . . 2 6 3 . 1 4 . . . . . . 3 . Fabricators 3 | . . . . . . 2 . . . . . . . . . . . . . . 1 . . . Repair Stations 4 | . . . . . 1 1 . . . . 1 . . . . 1 . . . . . . . . Recycling Units 7 | . 2 . . . 2 1 . . . . . . . . . . . . . . . . 2 . Scanalyzers 3 | . . . . . . . . . . . 1 . . . . 2 . . . . . . . . Garrison Access 4 | . . . . . 1 2 . . . . . . . . 1 . . . . . . . . . Total Hacks 237 | . 18 . 26 3 43 19 . . . . 8 11 9 25 4 27 . . 28 . 2 . 14 . Successful 164 | . 15 . 26 3 18 9 . . . . 5 7 3 25 2 16 . . 28 . 1 . 6 . Failed 73 | . 3 . . . 25 10 . . . . 3 4 6 . 2 11 . . . . 1 . 8 . Catastrophic 14 | . 1 . . . 4 3 . . . . . . 2 . 1 1 . . . . . . 2 . Database Lockouts . | . . . . . . . . . . . . . . . . . . . . . . . . . Manual 35 | . 5 . . 1 15 7 . . . . 1 3 . . 3 . . . . . . . . . Terminals 112 | . 16 . . 3 38 9 . . . . 4 11 9 . 3 11 . . . . . . 8 . Fabricators 5 | . . . . . . 3 . . . . . . . . . . . . . . 2 . . . Repair Stations 7 | . . . . . 2 1 . . . . 2 . . . . 2 . . . . . . . . Recycling Units 11 | . 2 . . . 2 1 . . . . . . . . . . . . . . . . 6 . Scanalyzers 16 | . . . . . . . . . . . 2 . . . . 14 . . . . . . . . Garrison Access 7 | . . . . . 1 5 . . . . . . . . 1 . . . . . . . . . Terminal Hacks 133 | . 12 . 26 2 12 4 . . . . 1 6 3 25 1 7 . . 28 . . . 6 . Record 76 | . 4 . 26 1 1 . . . . . . . 3 25 . . . . 16 . . . . . Part Schematic 5 | . . . . . . . . . . . . . . . . 1 . . 4 . . . . . Robot Analysis 4 | . . . . . . . . . . . . . . . . . . . 4 . . . . . Prototype ID Bank 12 | . 1 . . . 2 1 . . . . 1 . . . . 3 . . 4 . . . . . Open Door 2 | . . . . . . . . . . . . 2 . . . . . . . . . . . . Level Access Points 1 | . . . . . . . . . . . . . . . . . . . . . . . 1 . Branch Access Points 4 | . 1 . . . . 1 . . . . . . . . . 1 . . . . . . 1 . Emergency Access Points 2 | . 1 . . . . . . . . . . . . . . 1 . . . . . . . . Terminal Index 1 | . . . . . . . . . . . . 1 . . . . . . . . . . . . Recycling Unit Index 2 | . 1 . . . . . . . . . . . . . . . . . . . . . 1 . Unreport Threat 4 | . . . . . 2 1 . . . . . . . . 1 . . . . . . . . . Locate Traps 5 | . 1 . . . 1 1 . . . . . 2 . . . . . . . . . . . . Reprogram Traps 1 | . . . . . . . . . . . . . . . . . . . . . . . 1 . Dispatch Records 3 | . . . . . 1 . . . . . . . . . . 1 . . . . . . 1 . Maintenance Status 1 | . . . . . . . . . . . . . . . . . . . . . . . 1 . Security Status 1 | . . . . . 1 . . . . . . . . . . . . . . . . . . . Surveillance Status 1 | . . . . . 1 . . . . . . . . . . . . . . . . . . . Patrol Status 1 | . . . . 1 . . . . . . . . . . . . . . . . . . . . Transport Status 1 | . . . . . 1 . . . . . . . . . . . . . . . . . . . Recall Investigation 1 | . 1 . . . . . . . . . . . . . . . . . . . . . . . Registered Components 1 | . . . . . 1 . . . . . . . . . . . . . . . . . . . Zone Layout 4 | . 2 . . . 1 . . . . . . 1 . . . . . . . . . . . . Fabricator Hacks 3 | . . . . . . 2 . . . . . . . . . . . . . . 1 . . . Build 3 | . . . . . . 2 . . . . . . . . . . . . . . 1 . . . Repair Station Hacks 7 | . . . . . 2 1 . . . . 2 . . . . 2 . . . . . . . . Scan Component 3 | . . . . . 1 . . . . . 1 . . . . 1 . . . . . . . . Repair 3 | . . . . . 1 . . . . . 1 . . . . 1 . . . . . . . . Refit 1 | . . . . . . 1 . . . . . . . . . . . . . . . . . . Recycling Unit Hacks . | . . . . . . . . . . . . . . . . . . . . . . . . . Scanalyzer 9 | . . . . . . . . . . . 2 . . . . 7 . . . . . . . . Insert Component 3 | . . . . . . . . . . . 1 . . . . 2 . . . . . . . . Analyze 6 | . . . . . . . . . . . 1 . . . . 5 . . . . . . . . Garrison Access Hacks . | . . . . . . . . . . . . . . . . . . . . . . . . . Unauthorized Hacks 12 | . 3 . . 1 4 2 . . . . . 1 . . 1 . . . . . . . . . Terminals 4 | . 1 . . 1 1 . . . . . . 1 . . . . . . . . . . . . Assimilate 1 | . . . . . 1 . . . . . . . . . . . . . . . . . . . Botnet 2 | . . . . 1 . . . . . . . 1 . . . . . . . . . . . . Sabotage 1 | . 1 . . . . . . . . . . . . . . . . . . . . . . . Fabricators . | . . . . . . . . . . . . . . . . . . . . . . . . . Repair Stations . | . . . . . . . . . . . . . . . . . . . . . . . . . Recycling Units 5 | . 2 . . . 2 1 . . . . . . . . . . . . . . . . . . Tunnel 5 | . 2 . . . 2 1 . . . . . . . . . . . . . . . . . . Scanalyzers . | . . . . . . . . . . . . . . . . . . . . . . . . . Garrison Access 3 | . . . . . 1 1 . . . . . . . . 1 . . . . . . . . . Reprogram 3 | . . . . . 1 1 . . . . . . . . 1 . . . . . . . . . Data Cores Recovered 3 | . . . . . . . . . . . 2 . . . . 1 . . . . . . . . Used . | . . . . . . . . . . . . . . . . . . . . . . . . . Hacking Detections 49 | . 5 . . 1 11 8 . . . . 3 5 3 . 1 7 . . . . 1 . 4 . Full Trace Events 7 | . . . . . 2 1 . . . . . . 3 . . . . . . . . . 1 . Feedback Events 1 | . . . . . . 1 . . . . . . . . . . . . . . . . . . Corruption 1 | . . . . . . 1 . . . . . . . . . . . . . . . . . . Feedback Blocked . | . . . . . . . . . . . . . . . . . . . . . . . . . Robot Schematics Acquired 4 | . . . . . . . . . 4 . . . . . . . . . . . . . . . Robots Built 2 | . . . . . . 1 . . . . . . . . . . . . . . 1 . . . Authchips . | . . . . . . . . . . . . . . . . . . . . . . . . . Time 102 | . . . . . . 40 . . . . . . . . . . . . . . 62 . . . Total Robot Build Rating 8 | . . . . . . 1 . . . . . . . . . . . . . . 7 . . . Part Schematics Acquired 22 | . . . . . . . . . 14 . 1 . . . . 3 . . 4 . . . . . Parts Built 1 | . . . . . . 1 . . . . . . . . . . . . . . . . . . Authchips . | . . . . . . . . . . . . . . . . . . . . . . . . . Time 58 | . . . . . . 58 . . . . . . . . . . . . . . . . . . Total Part Build Rating 7 | . . . . . . 7 . . . . . . . . . . . . . . . . . . Parts Repaired 3 | . . . . . 1 . . . . . 1 . . . . 1 . . . . . . . . Time 200 | . . . . . 108 . . . . . 38 . . . . 54 . . . . . . . . Parts Recycled . | . . . . . . . . . . . . . . . . . . . . . . . . . Recycled Matter . | . . . . . . . . . . . . . . . . . . . . . . . . . Retrieved Matter . | . . . . . . . . . . . . . . . . . . . . . . . . . Retrieved Components . | . . . . . . . . . . . . . . . . . . . . . . . . . Parts Scanalyzed 3 | . . . . . . . . . . . 1 . . . . 2 . . . . . . . . Part Schematics Acquired 3 | . . . . . . . . . . . 1 . . . . 2 . . . . . . . . Parts Damaged . | . . . . . . . . . . . . . . . . . . . . . . . . . Bothacking | -11 -10 -10 -10 -9 -8 -7 -7 -7 -7 -6 -6 -6 -6 -6 -6 -5 -5 -5 -5 -4 -4 -4 -4 -4 ------------ Run | Jun Mat Min Exi Min Mat Fac Low Low Zio Pro Fac Ext Cet Arc Hub Fac Upp Upp Zhi Pro Fac Was Fac Upp Used RIF Installer . | . . . . . . . . . . . . . . . . . . . . . . . . . Robots Hacked . | . . . . . . . . . . . . . . . . . . . . . . . . . Non-combat . | . . . . . . . . . . . . . . . . . . . . . . . . . Combat . | . . . . . . . . . . . . . . . . . . . . . . . . . Robot Hacks Applied . | . . . . . . . . . . . . . . . . . . . . . . . . . Relay Couplers Released . | . . . . . . . . . . . . . . . . . . . . . . . . . Fabnet Peak Effective % . | . . . . . . . . . . . . . . . . . . . . . . . . . Robots Rewired 4 | . . . . . . . . . . . . 4 . . . . . . . . . . . . Allies Hacked 1 | . . . . . . . . . . . . 1 . . . . . . . . . . . . Hacks Repelled . | . . . . . . . . . . . . . . . . . . . . . . . . . Allies | -11 -10 -10 -10 -9 -8 -7 -7 -7 -7 -6 -6 -6 -6 -6 -6 -5 -5 -5 -5 -4 -4 -4 -4 -4 -------- Run | Jun Mat Min Exi Min Mat Fac Low Low Zio Pro Fac Ext Cet Arc Hub Fac Upp Upp Zhi Pro Fac Was Fac Upp Total Allies 30 | . . 3 . 1 2 4 . . 3 . . 10 . . . 2 . . . . 1 . 3 1 Largest Group 8 | . . 3 . 1 3 3 . . 3 3 . 8 8 . . 2 . . . . 1 . 3 1 Highest-Rated Group 238 | . . 40 . 31 63 43 . . 93 93 . 238 238 . . 62 . . . . 36 . 138 106 Highest-Rated Ally 106 | . . 16 . 31 31 16 . . 51 51 . 39 39 . . 31 . . . . 36 . 46 106 Total Orders 8 | . . . . . . . . . . . 1 3 . . . . . . . . 4 . . . STAY 1 | . . . . . . . . . . . . . . . . . . . . . 1 . . . FOLLOW 1 | . . . . . . . . . . . . . . . . . . . . . 1 . . . AID 2 | . . . . . . . . . . . . . . . . . . . . . 2 . . . RETURN 4 | . . . . . . . . . . . 1 3 . . . . . . . . . . . . Ally Attacks 198 | . . . . . 43 18 . . . 28 . 16 74 . . 7 . . . . . . 12 . Total Damage 3074 | . . . . . 516 147 . . . 442 . 290 1401 . . 88 . . . . . . 190 . Kills 30 | . . . . . 6 2 . . . 4 . 2 12 . . 3 . . . . . . 1 . Allies Corrupted . | . . . . . . . . . . . . . . . . . . . . . . . . . Allies Melted . | . . . . . . . . . . . . . . . . . . . . . . . . . Intel | -11 -10 -10 -10 -9 -8 -7 -7 -7 -7 -6 -6 -6 -6 -6 -6 -5 -5 -5 -5 -4 -4 -4 -4 -4 ------- Run | Jun Mat Min Exi Min Mat Fac Low Low Zio Pro Fac Ext Cet Arc Hub Fac Upp Upp Zhi Pro Fac Was Fac Upp Robot Analysis Total 4 | . . . . . . . . . . . . . . . . . . . 4 . . . . . Derelict Logs Recovered 12 | . . 1 . 2 . . 1 . 2 2 . . . . . . 1 2 . 1 . . . . Drone Launches 4 | . . . . . . . . . . . 1 3 . . . . . . . . . . . . Drone Recoveries 4 | . . . . . . . . . . . 1 3 . . . . . . . . . . . . Exploration | -11 -10 -10 -10 -9 -8 -7 -7 -7 -7 -6 -6 -6 -6 -6 -6 -5 -5 -5 -5 -4 -4 -4 -4 -4 ------------- Run | Jun Mat Min Exi Min Mat Fac Low Low Zio Pro Fac Ext Cet Arc Hub Fac Upp Upp Zhi Pro Fac Was Fac Upp Turns Passed 16745 | 49 671 370 427 794 2021 1237 206 242 1251 716 552 988 1235 468 407 1313 384 522 281 782 728 166 735 200 Spaces Moved 10723 | 42 492 366 427 661 1273 780 157 158 975 460 350 628 520 219 208 689 205 290 160 435 280 113 498 337 Core 585 | 3 . . . . . . . . . . . . . . . . . . . . . 52 193 337 Treads 3262 | . . . . . . . . . . . . . 491 219 208 689 205 290 160 435 280 61 224 . Legs 4308 | . . . . . 771 780 157 158 975 460 350 628 29 . . . . . . . . . . . Wheels 2487 | 39 492 366 427 661 502 . . . . . . . . . . . . . . . . . . . Hover 81 | . . . . . . . . . . . . . . . . . . . . . . . 81 . Flight . | . . . . . . . . . . . . . . . . . . . . . . . . . Fastest Speed 50 | 50 100 100 100 100 90 127 127 127 127 127 128 126 124 160 160 160 163 165 165 165 163 50 50 50 Average Speed 127 | 96 100 100 100 100 113 127 127 127 127 141 128 127 158 160 160 160 163 165 165 165 163 110 102 50 Slowest Speed 260 | 100 100 100 100 110 200 127 127 127 127 197 130 128 160 160 160 163 165 165 165 165 165 165 260 50 Overloaded Moves . | . . . . . . . . . . . . . . . . . . . . . . . . . Propulsion Burnouts . | . . . . . . . . . . . . . . . . . . . . . . . . . Robots Hopped . | . . . . . . . . . . . . . . . . . . . . . . . . . Cave-ins Triggered 1 | . . . . . . . . . . . . . . . . . . . . . . 1 . . Exploration Rate (%) 55 | 3 87 83 93 99 94 22 36 31 87 65 9 79 96 98 22 18 40 49 62 61 8 68 19 53 Regions Visited 24 Branch Regions 16 Pre-discovered Areas 12 | . 2 1 . 1 2 1 . . 1 1 . . . . . . . . 3 . . . . . Known Exits Taken 12 | . 1 . . . 1 1 1 . . . . 1 1 1 1 1 1 . . 1 . . 1 . Unknown Exits Taken 10 | 1 . 1 1 1 . . . 1 1 1 1 . . . . . . 1 1 . . . . . Scrap Searched 14 | . . 1 . 3 . . 1 3 3 2 . . . . . . . 1 . . . . . . Spaces Dug 137 | . . . . . . . . . . 82 . . . 1 . 19 6 . . 20 . 9 . . Terrain Destroyed 513 | . . . . 11 24 5 . . . 133 . 34 5 6 183 38 10 10 . 24 19 9 2 . Melee . | . . . . . . . . . . . . . . . . . . . . . . . . . Projectile 166 | . . . . 11 18 . . . . 4 . 4 5 6 6 38 10 10 . 24 19 9 2 . AOE 347 | . . . . . 6 5 . . . 129 . 30 . . 177 . . . . . . . . . Terrain Rammed . | . . . . . . . . . . . . . . . . . . . . . . . . . Walls Destroyed . | . . . . . . . . . . . . . . . . . . . . . . . . . Machines Disabled . | . . . . . . . . . . . . . . . . . . . . . . . . . Actions | -11 -10 -10 -10 -9 -8 -7 -7 -7 -7 -6 -6 -6 -6 -6 -6 -5 -5 -5 -5 -4 -4 -4 -4 -4 --------- Run | Jun Mat Min Exi Min Mat Fac Low Low Zio Pro Fac Ext Cet Arc Hub Fac Upp Upp Zhi Pro Fac Was Fac Upp Total 12754 | 47 613 368 427 719 1685 934 162 182 987 487 426 763 748 305 245 824 227 309 178 473 454 129 694 368 Wait 1044 | . 73 . . 12 274 61 . 15 . . 43 52 41 68 8 62 2 1 . 21 110 4 166 31 Move 10700 | 41 491 365 426 660 1272 779 156 157 974 459 349 627 519 218 207 688 204 289 159 434 280 112 497 337 Hop . | . . . . . . . . . . . . . . . . . . . . . . . . . Pick Up 82 | . 10 2 . 1 16 9 . . 2 . 2 7 14 . . 7 1 1 3 1 5 . 1 . Fast Attach 75 | 6 3 . . 1 9 10 . 1 1 . 6 1 13 1 3 2 . . 5 . 4 . 9 . Attach 52 | . . . . 1 5 3 . . 2 1 4 6 9 . 2 6 2 . . . 8 . 3 . Detach 20 | . . . . 1 1 . . . 2 1 1 2 1 . 3 3 . . 1 . 2 . 2 . Swap 104 | . 3 . . 4 14 8 3 . 2 6 5 14 19 4 5 8 . 2 2 4 1 . . . Drop 113 | . 4 . . 1 21 20 2 1 3 1 5 3 26 . 1 8 1 1 8 . 1 . 6 . Fire 530 | . 29 1 . 38 73 44 1 8 . 19 11 22 106 14 16 39 17 15 . 12 43 12 10 . Melee 1 | . . . . . . . . . 1 . . . . . . . . . . . . . . . Ram . | . . . . . . . . . . . . . . . . . . . . . . . . . Kick . | . . . . . . . . . . . . . . . . . . . . . . . . . Crush 2 | . . . . . . . . . . . . . . . . 1 . . . . . 1 . . Escape Stasis . | . . . . . . . . . . . . . . . . . . . . . . . . . Rewire 31 | . . . 1 . . . . . . . . 29 . . . . . . . 1 . . . . Trap . | . . . . . . . . . . . . . . . . . . . . . . . . . Miscellaneous . | . . . . . . . . . . . . . . . . . . . . . . . . . Route ------- -11/Junkyard -10/Materials (discovered 5 exits: [*Mat x3] / *Min x2) -10/Mines (discovered 3 exits: [*Mat x2] / *Exi) -10/Exiles (discovered 2 exits: *Min x2) -9/Mines (discovered 2 exits: *Mat x2) -8/Materials (discovered 2 exits: *Fac x2) -7/Factory (discovered 2 exits: *Low x2) -7/Lower Caves -7/Lower Caves -7/Zion -6/Proximity Caves -6/Factory -6/Extension (discovered 3 exits: *Fac x2 / *Cet) -6/Cetus (discovered 3 exits: *Fac x2 / *Arc) -6/Archives (discovered 3 exits: *Fac / *Hub x2) -6/Hub_04(d) -5/Factory (discovered 3 exits: *Fac / *Upp x2) -5/Upper Caves -5/Upper Caves -5/Zhirov -4/Proximity Caves -4/Factory -4/Waste -4/Factory (discovered 6 exits: Res x4 / *Upp x2) -4/Upper Caves History --------- Turn | Location | Event 23 | -11/Junkyard | Discovered new exit (range 15) 50 | -11/Junkyard | Entered Materials 262 | -10/Materials | Discovered new exit (range 4) 278 | -10/Materials | Discovered new exit (range 16) 311 | -10/Materials | Discovered new exit (range 17) 317 | -10/Materials | Build established: Mutant 494 | -10/Materials | Discovered new exit (range 16) 699 | -10/Materials | Discovered new exit (range 15) 699 | -10/Materials | Identified exit to Mines 721 | -10/Materials | Entered Mines 724 | -10/Mines | Assisted by bots powering up and referring to "LRC-V3" 751 | -10/Mines | Met a Derelict bent on vengeance 791 | -10/Mines | Discovered new exit (range 5) 818 | -10/Mines | Found a damaged Exp. Sensor Array with a note attached 820 | -10/Mines | Found Prototype Device 849 | -10/Mines | Discovered new exit (range 13) 1028 | -10/Mines | Received a Rocket Launcher from a helpful Derelict 1049 | -10/Mines | Learned Materials machine intel 1084 | -10/Mines | Deemed a non-threat by the Exiles lab entrance 1085 | -10/Mines | Discovered new exit (range 5) 1091 | -10/Mines | Entered Exiles 1104 | -10/Exiles | Discovered new exit (range 17) 1133 | -10/Exiles | Met 8R-AWN 1151 | -10/Exiles | Met EX-HEX 1216 | -10/Exiles | Met EX-DEC 1234 | -10/Exiles | Visited The Gauntlet 1360 | -10/Exiles | Met EX-BIN 1507 | -10/Exiles | Discovered new exit (range 14) 1518 | -10/Exiles | Entered Mines 1547 | -9/Mines | Learned 2 Materials zone layouts 1837 | -9/Mines | A weapon hastily lodged in a ceiling crevice suddenly fell to the ground 1931 | -9/Mines | Learned location of 1 exit from Materials 2079 | -9/Mines | Discovered new exit (range 7) 2124 | -9/Mines | Discovered new exit (range 5) 2226 | -9/Mines | Escorted by a lone wolf Derelict 2312 | -9/Mines | Entered Materials 2312 | -8/Materials | Accompanied by 1 ally 2312 | -8/Materials | Evolved 4 slots: Propulsion x2, Utility x1, Weapon x1 2313 | -8/Materials | Identified exit to Factory 2315 | -8/Materials | Loaded intel: 63 machine locations 2315 | -8/Materials | Identified Exp. Sensor Array 2365 | -8/Materials | Garrison activated, responded to threat 2599 | -8/Materials | Build established: Skirmisher 2673 | -8/Materials | Garrison activated, responded to threat 3215 | -8/Materials | Discovered exit to Factory (range 4) 4205 | -8/Materials | Repaired Exp. Sensor Array 4333 | -8/Materials | Entered Factory 4333 | -7/Factory | Evolved 2 slots: Power x1, Utility x1 4460 | -7/Factory | Fabricated T-07 Excavator (x1) 4466 | -7/Factory | Fabricated Imp. Cloaking Device (x1) 5038 | -7/Factory | Identified exit to Lower Caves 5175 | -7/Factory | Garrison activated, responded to threat 5570 | -7/Factory | Entered Lower Caves 5654 | -7/Lower Caves | Identified exit to Lower Caves 5776 | -7/Lower Caves | Entered another Lower Caves area 5778 | -7/Lower Caves | Attracted the attention of an 0b10 checkpoint 5809 | -7/Lower Caves | Encountered a Warlord checkpoint 5998 | -7/Lower Caves | Discovered new exit (range 14) 6018 | -7/Lower Caves | Entered Zion 6069 | -7/Zion | System corruption cleaned by Quarantine Array 6102 | -7/Zion | Given the Hacking Drone Bay 6105 | -7/Zion | Found Prototype Device 6106 | -7/Zion | Identified Hacking Drone Bay 6189 | -7/Zion | Visited the Megawrench Repair Shop 6189 | -7/Zion | Megawrench repaired 13 parts 6232 | -7/Zion | Discovered new exit (range 10) 6505 | -7/Zion | Gained Derelict followers 6635 | -7/Zion | Learned location of Warlord (-4) 7269 | -7/Zion | Entered Proximity Caves 7269 | -6/Proximity Caves | Accompanied by 3 allies 7365 | -6/Proximity Caves | Build established: Mutant 7692 | -6/Proximity Caves | Spotted B-75 Beast 7707 | -6/Proximity Caves | Destroyed B-75 Beast 7722 | -6/Proximity Caves | Learned Factory security intel 7902 | -6/Proximity Caves | Attracted the attention of an 0b10 outpost 7973 | -6/Proximity Caves | Discovered new exit (range 10) 7985 | -6/Proximity Caves | Entered Factory 7985 | -6/Factory | Evolved 2 slots: Propulsion x1, Utility x1 8046 | -6/Factory | Build established: Scavenger-Skirmisher 8295 | -6/Factory | Repaired Carbon-fiber Leg 8445 | -6/Factory | Build established: Hacker-Skirmisher 8460 | -6/Factory | Discovered new exit (range 18) 8537 | -6/Factory | Entered Extension 8600 | -6/Extension | Rescued a captive Derelict 8600 | -6/Extension | Rescued a captive Derelict 8767 | -6/Extension | Identified exit to Cetus 8844 | -6/Extension | Energy Cycler disabled 8844 | -6/Extension | Rescued a captive Derelict 8844 | -6/Extension | Rescued a captive Derelict 8847 | -6/Extension | Rescued a captive Derelict 8849 | -6/Extension | Rescued a captive Derelict 9172 | -6/Extension | Discovered new exit (range 16) 9239 | -6/Extension | Build established: Hacker-Gunner 9493 | -6/Extension | Discovered new exit (range 10) 9525 | -6/Extension | Entered Cetus 9525 | -6/Cetus | Accompanied by 8 allies 9543 | -6/Cetus | Spotted Cetus Guard 9543 | -6/Cetus | Spotted Cetus Guard 9544 | -6/Cetus | Spotted Cetus Guard 9547 | -6/Cetus | Spotted Cetus Guard 9549 | -6/Cetus | Allies destroyed Cetus Guard 9553 | -6/Cetus | Allies destroyed Cetus Guard 9562 | -6/Cetus | Allies destroyed Cetus Guard 9573 | -6/Cetus | Destroyed Cetus Guard 9686 | -6/Cetus | Discovered new exit (range 15) 9799 | -6/Cetus | Cetus Manufacturing Module disabled 10342 | -6/Cetus | Discovered new exit (range 16) 10362 | -6/Cetus | Lost 3 parts (1u2w) 10384 | -6/Cetus | Spotted Cetus Guard 10385 | -6/Cetus | Spotted Cetus Guard 10414 | -6/Cetus | Spotted Cetus Guard 10430 | -6/Cetus | Spotted Cetus Guard 10465 | -6/Cetus | Destroyed Cetus Guard 10471 | -6/Cetus | Destroyed Cetus Guard 10491 | -6/Cetus | Destroyed Cetus Guard 10499 | -6/Cetus | Destroyed Cetus Guard 10522 | -6/Cetus | Lost 4 parts (2p1n1u) 10661 | -6/Cetus | Discovered new exit (range 16) 10669 | -6/Cetus | Met Revision 17 10693 | -6/Cetus | Identified exit to Factory 10728 | -6/Cetus | Build established: Scavenger-Tank 10759 | -6/Cetus | Identified exit to Archives 10760 | -6/Cetus | Entered Archives 10873 | -6/Archives | Core integrity fell below 50% 11016 | -6/Archives | Unable to access archive contents 11019 | -6/Archives | Discovered new exit (range 16) 11033 | -6/Archives | Unable to access archive contents 11049 | -6/Archives | Unable to access archive contents 11054 | -6/Archives | Discovered exit to Factory (range 16) 11139 | -6/Archives | Identified exit to Hub_04(d) 11179 | -6/Archives | Discovered exit to Hub_04(d) (range 16) 11228 | -6/Archives | Entered Hub_04(d) 11235 | -6/Hub_04(d) | Spotted B-75 Beast 11286 | -6/Hub_04(d) | Destroyed B-75 Beast 11477 | -6/Hub_04(d) | Discovered exit to Factory (range 16) 11624 | -6/Hub_04(d) | Network Hub disabled 11625 | -6/Hub_04(d) | Spotted Lightning 11629 | -6/Hub_04(d) | Spotted Lightning 11631 | -6/Hub_04(d) | Spotted Lightning 11635 | -6/Hub_04(d) | Entered Factory 11635 | -5/Factory | Evolved 2 slots: Utility x2 11929 | -5/Factory | Build established: Scavenger-Skirmisher 12191 | -5/Factory | Allied Derelicts emerged from ambush trap array 12274 | -5/Factory | Discovered new exit (range 4) 12341 | -5/Factory | Build established: Scavenger-Tank 12408 | -5/Factory | Repaired Centrium Heavy Treads 12639 | -5/Factory | Identified exit to Upper Caves 12868 | -5/Factory | Cargo convoy interrupted 12948 | -5/Factory | Entered Upper Caves 13033 | -5/Upper Caves | Identified exit to Upper Caves 13067 | -5/Upper Caves | Attracted the attention of an 0b10 checkpoint 13332 | -5/Upper Caves | Entered another Upper Caves area 13406 | -5/Upper Caves | Learned location of 1 exit from Proximity Caves 13623 | -5/Upper Caves | Learned 4 Factory zone layouts 13798 | -5/Upper Caves | Discovered new exit (range 12) 13854 | -5/Upper Caves | Entered Zhirov 13854 | -5/Zhirov | Discovered new exit (range 3) 13884 | -5/Zhirov | Met Zhirov 13920 | -5/Zhirov | Learned location of Quarantine (-3) 13920 | -5/Zhirov | Learned location of Testing (-2) 13949 | -5/Zhirov | Zhirov requested help retrieving the SGEMP Prototype 13982 | -5/Zhirov | Found Alien Artifact 13982 | -5/Zhirov | Identified Integrated Reactor 13982 | -5/Zhirov | Installed Integrated Reactor, increased core energy generation (+10) 14061 | -5/Zhirov | Found Alien Artifact 14135 | -5/Zhirov | Entered Proximity Caves 14136 | -4/Proximity Caves | Identified exit to Factory 14138 | -4/Proximity Caves | Spotter reported a threat 14416 | -4/Proximity Caves | Learned location of 1 exit from Research 14443 | -4/Proximity Caves | Build established: Hacker-Tank 14794 | -4/Proximity Caves | Build established: Scavenger-Mutant 14826 | -4/Proximity Caves | Attracted the attention of an 0b10 checkpoint 14917 | -4/Proximity Caves | Entered Factory 14917 | -4/Factory | Evolved 2 slots: Utility x2 15057 | -4/Factory | Fabricated M-36 Artificer (x1) 15336 | -4/Factory | Lost 5 parts (1p3u1w) 15460 | -4/Factory | Discovered new exit (range 5) 15645 | -4/Factory | Sucked down chute 15645 | -4/Factory | Entered Waste 15648 | -4/Waste | Build established: Scavenger-Gunner 15660 | -4/Waste | EMP discharged 15665 | -4/Waste | Spotted C-40 Crusher 15685 | -4/Waste | Spotted C-40 Crusher 15685 | -4/Waste | Spotted C-40 Crusher 15685 | -4/Waste | Spotted C-40 Crusher 15714 | -4/Waste | Spotted C-40 Crusher 15745 | -4/Waste | Crushed by falling debris 15745 | -4/Waste | Crushed by Compactor (1 part destroyed) 15759 | -4/Waste | Crushed by Compactor (1 part destroyed) 15760 | -4/Waste | EMP discharged 15760 | -4/Waste | System corruption reached 10% 15769 | -4/Waste | Crushed by Compactor (1 part destroyed) 15781 | -4/Waste | Crushed by Compactor (1 part destroyed, 1 dropped) 15784 | -4/Waste | Crushed by Compactor (1 part destroyed) 15785 | -4/Waste | Released all parts (6) 15803 | -4/Waste | Discovered new exit (range 16) 15804 | -4/Waste | Spotted C-40 Crusher 15811 | -4/Waste | Entered Factory 15815 | -4/Factory | Lost 9 parts (1p2n6u) 16106 | -4/Factory | Identified exit to Research 16341 | -4/Factory | Identified exit to Upper Caves 16494 | -4/Factory | Cargo convoy interrupted 16505 | -4/Factory | Core integrity fell below 50% 16513 | -4/Factory | Build established: Mutant 16546 | -4/Factory | Entered Upper Caves 16674 | -4/Upper Caves | Core integrity fell below 20% 16731 | -4/Upper Caves | Attracted the attention of an 0b10 base 16746 | -4/Upper Caves | Destroyed by S-27 Virus with Autogun Last Messages --------------- 16508_ System corrupted: Matter fused (-5). 16515_ Penetrated by Slug. 16516_ Slug penetrates Fusion Modulator. 16516_ Slug penetrates Wall. 16544_ K-01 Serf destroyed. 16546_ Acquired 24 matter. LOCATION=UPPER CAVES GOAL=ESCAPE 16555_ System corrupted: Heat flow error (+224). 16572_ AO YSHURZCY=LX CBXX|RNQJSUPHOVTIJ 16589_ System corrupted: Heat flow error (+243). 16612_ |R1Q0FCOYETU2:V<#107UWVYE 6U 16634_ System corrupted: Component data lost. A strange signal echoes through the caves. 16675_ JNMOS /HTG#J|2TPRVS//,OU :C 16697_ System corrupted: Component data lost. 16711_ Slug penetrates Wall. 16714_ F7B,DTBVJ3M6 Map ----- +----------------------------------------------------+ | ???????????????????????????????????????????# | | ???????????????????????????????????????????# #### | | ???????????????????????????????????????????# #?? | | ???????????????????????????????????????????# #"" | | ???????????????????????????????????????????# #" | | ???????????????????????????????????????????# #"" | | ???????????????????????????????????????????# #" | | ???????????????????????????????????????????# / | | ???????????????????????????????????????????# / | | ???????????????????????????????????????????# / | | ???????????????????????????????????????????# / | | ???????????????????????????????????????????# #" | | ???????????????????????????????????????????# #"" | | ???????????????????????????????????????????# #? | | ???????????????????????????????????????????# #?? | | ???????????????????????????????????????????# #??? | | ???????????????????????????????????????????# #### | | ???????????????????????????????????????????# | | ???????????????????????????????????????????# | | ???????????????????????????????????????????##### | | ???????????????????????????????????????????????### | | ?????????????????????##????????????######????????# | | ????????????????????## #???????????# ##????#### | | ???????????????????## #???????##?## ##???# | | ???????????????????# ##?????# "#" ##??# | | ???????????????????# @#####?#""" #??## | | ??????????????????## ## ##?# $ #???## | | ??????????????# ####" #????## | | ?????????????# ####### ##????# | | ??????????? ##??## ###### | | ???????????? ###### #### %==%[ | | ????????????#???????# ## #### ## *##### | | ???????????????????# #?####??# ##???? | | ??????????????????# ????????# s ##????? | | ??????????????????# ????? #?????? | | ??????????????????# ??? ??? | | ??????????????????## ## ### | | ???????????????????## ## ######?######## | | ????????????????????#????# #????????????????? | | ????????????????????????# #?????????????????? | | ??????????????????????? #??????????????????? | | ??????????????????????? ???????????????????? | | ??????????????????????? ???????????????????? | | ???????????????????????? ## ????????????????????? | | ???????????????????????????#?????????????????????? | | ?????????????????????????????????????????????????? | | ?????????????????????????????????????????????????? | | ?????????????????????????????????????????????????? | | ?????????????????????????????????????????????????? | | ?????????????????????????????????????????????????? | +----------------------------------------------------+ Best States ------------- Heat Dissipation 100 Coolant Potential 65 Energy Generation 49 Energy Capacity 600 Matter Stores 300 Matter Capacity 300 Sight Range 20 Robot Scan Range 20 Terrain Scan Range 16 Terrain Scan Density 10 ECM Strength 2 Cloak Strength 3 Armor Coverage 450 Resistance: KI 45 Resistance: TH 45 Resistance: EX 20 Resistance: EM 20 Resistance: I 20 Resistance: S 20 Resistance: P 20 Core Shielding 40 Weapon Cycling 15 Evasion (%) 55 Targeting Accuracy 8 Recoil Reduction 11 Offensive Hacking 34 Defensive Hacking 10 Item Schematics ----------------- Adv. Terrain Scan Processor | -7/Zion | Archive Transmission Jammer | -7/Zion | Archive Power Amplifier | -7/Zion | Archive Proton Cannon | -7/Zion | Archive Gatling Laser | -7/Zion | Archive Spk. Medium Treads | -7/Zion | Archive Variable Charge Gun | -7/Zion | Archive Imp. Remote Datajack | -7/Zion | Archive Remote Datajack | -7/Zion | Archive Mak. Cloaking Device | -7/Zion | Archive Imp. Core Shielding | -7/Zion | Archive Imp. Melee Analysis Suite | -7/Zion | Archive Shock Absorption System | -7/Zion | Archive Matter Compressor | -7/Zion | Archive Exp. Sensor Array | -6/Factory | Scanalyzed Centrium Heavy Treads | -5/Factory | Scanalyzed Centrium Medium Armor Plating | -5/Factory | Scanalyzed Imp. Coolant Injector | -5/Factory | Hacked Assault Drone Bay | -5/Zhirov | Free Exp. Heat Sink | -5/Zhirov | Free Exp. Optical Array | -5/Zhirov | Free Imp. Arc Thrower | -5/Zhirov | Free Robot Schematics ------------------ K-01 Serf | -7/Zion | Archive G-47 Trooper | -7/Zion | Archive B-48 Gladiator | -7/Zion | Archive C-57 Dissector | -7/Zion | Archive Fabricated ------------ T-07 Excavator | x1 | -7/Factory | Preloaded Imp. Cloaking Device | x1 | -7/Factory | Preloaded M-36 Artificer | x1 | -4/Factory | Preloaded Alien Tech Used ----------------- Integrated Reactor Achievements -------------- None Challenges ------------ None Game ------ Seed GhostCannonWell Manual? 0 Play Time 03:08:18 Cumulative 103.0 hours Start 2023.03.23 @ 18:06:48 End 2023.03.23 @ 21:47:48 Sessions 1 Manual Loads 0 Difficulty Adventurer Special Mode None Game No. 59 Rogue 25 Adventurer 34 Explorer 0 Win Type - Total 4 Types 4/0/0/0/0/0/0/0/0 Lore% 53 Gallery% 63 Achievement% 47 Wizard Run 0 Options --------- ASCII 0 Keyboard 0 Movement Numpad Keybinds 0 Fullscreen 1 Font 24/Terminus Map View 76x50 Tactical HUD 1 Map Filters NONE Filters NONE Steam 1 RUN: 56889a70-4bb8-48b3-a1aa-48a99b9bd4ad